bitfinex/quotes_ETHUSD_20250824
["timestamp","ask_amount","ask_price","bid_price","bid_amount"]
[1756002966388,9.00472139,4787.9,4787.8,0.776]
[1756002966899,9.21567157,4787.9,4787.8,0.776]
[1756002967590,6.21567157,4787.9,4787.8,0.776]
[1756002969153,8.30426991,4787.9,4787.8,0.776]
[1756002969358,11.75295599,4787.9,4787.8,0.3129]
[1756002969590,19.75061416,4787.9,4787.8,0.02]
[1756002969764,19.42374259,4787.9,4787.8,0.02]
[1756002969964,19.91900788,4787.9,4787.8,0.776]
[1756002970194,19.35934259,4787.9,4787.8,0.776]
[1756002970369,5.81948608,4787.9,4787.8,0.776]
[1756002970570,9.33948608,4787.9,4787.8,0.776]
[1756002970772,5.8908,4787.9,4787.8,0.776]
[1756002972392,6.34014918,4787.9,4787.8,0.776]
[1756002972591,6.34014918,4787.9,4787.8,0.777]
[1756002972960,5.125,4787.9,4787.8,0.777]
[1756002973188,5.2298,4787.9,4787.8,0.777]
[1756002979399,1.7108,4787.9,4787.8,0.777]
[1756002979622,5.2288,4787.9,4787.8,0.777]
[1756002979913,5.2278,4787.9,4787.8,0.777]
[1756002980265,1.7108,4787.9,4787.8,0.777]
[1756002980488,3.6218,4787.9,4787.8,0.777]
[1756002980687,0.1048,4787.9,4787.8,2.86564196]
[1756002980866,0.1048,4787.9,4787.8,3.36107696]
[1756002981279,0.4117,4787.9,4787.8,2.10964196]
[1756002981480,15.00538037,4787.9,4787.8,0.021]
[1756002981682,15.62184921,4787.9,4787.8,0.021]
[1756002981877,15.09574094,4787.9,4787.8,0.021]
[1756002982080,6.70039381,4787.9,4787.8,0.021]
[1756002982283,10.22539381,4787.9,4787.8,0.021]
[1756002982481,10.30912281,4787.9,4787.8,0.021]
[1756002982969,10.77222281,4787.9,4787.8,0.021]
[1756002983368,5.74881647,4787.4,4787.3,0.001]
[1756002983597,11.83161194,4787.4,4787.3,0.001]
[1756002983908,13.37103935,4787.4,4787.3,0.001]
[1756002984407,12.6216461,4787.4,4787.3,0.001]
[1756002985003,12.6246461,4787.4,4787.3,0.001]
[1756002985497,12.72304334,4787.4,4787.3,0.001]
[1756002985802,12.72204334,4787.4,4787.3,0.001]
[1756002986509,13.18514334,4787.4,4787.3,0.001]
[1756002986671,12.62347419,4787.4,4787.3,0.001]
[1756002987371,12.16037419,4787.4,4787.3,0.001]
[1756002988106,12.62347419,4787.4,4787.3,0.001]
[1756002988404,13.18668716,4787.4,4787.3,0.001]
[1756002988772,12.72358716,4787.4,4787.3,0.001]
[1756002989178,12.72358716,4787.4,4787.3,0.2989]
[1756002989179,8.22768716,4787.4,4787.3,0.2989]
[1756002989406,10.99947449,4787.4,4787.3,0.7507]
[1756002989703,10.99947449,4787.4,4787.3,0.2989]
[1756002989908,11.33254033,4787.4,4787.3,0.2989]
[1756002990799,11.78434033,4787.4,4787.3,0.2989]
[1756002991005,8.25634033,4787.4,4787.3,0.2989]
[1756002991316,9.69752386,4787.4,4787.3,0.7507]
[1756002991470,6.16752386,4787.4,4787.3,0.7507]
[1756002991803,9.80132386,4787.4,4787.3,0.7507]
[1756002992106,9.67642082,4787.4,4787.3,0.7507]
[1756002992319,9.22669696,4787.4,4787.3,0.7507]
[1756002992525,11.31551343,4787.4,4787.3,0.7507]
[1756002992722,11.76455542,4787.4,4787.3,0.2989]
[1756002993221,9.22569696,4787.4,4787.3,0.7507]
[1756002993718,8.56569696,4787.4,4787.3,0.7507]
[1756002993912,5.56569696,4787.4,4787.3,0.7507]
[1756002997424,2.03769696,4787.4,4787.3,0.7507]
[1756002997633,5.56369696,4787.4,4787.3,0.7507]
[1756002998715,5.2368,4787.4,4787.3,0.7507]
[1756003000808,5.2338,4787.4,4787.3,0.7507]
[1756003001823,0.98687096,4788.0,4787.3,0.7507]
[1756003001824,0.32687096,4788.0,4787.7,2.08867203]
[1756003002036,0.1048,4787.4,4787.3,2.0898601]
[1756003002219,3.523,4787.9,4787.8,2.08864196]
[1756003002392,3.523,4787.9,4787.8,2.38654196]
[1756003002594,3.6278,4787.9,4787.8,2.83834196]
[1756003003188,0.1048,4787.9,4787.8,3.33104703]
[1756003004094,3.523,4788.5,4788.4,2.08838025]
[1756003004289,3.523,4788.5,4788.4,2.83808025]
[1756003004493,3.6278,4788.5,4788.4,2.83808025]
[1756003004737,0.1048,4788.5,4788.4,2.83808025]
[1756003005593,0.1048,4788.5,4788.4,3.33073462]
[1756003007228,0.1048,4788.5,4788.4,0.7497]
[1756003008040,0.4117,4788.5,4787.7,0.1048]
[1756003008339,0.4117,4788.5,4787.3,0.001]
[1756003008340,0.1048,4788.2,4787.3,0.001]
[1756003008540,0.1048,4787.7,4787.3,0.001]
[1756003008714,0.1048,4787.4,4787.3,0.001]
[1756003008907,0.1048,4787.4,4787.3,0.2895]
[1756003009536,0.1048,4787.4,4787.3,0.7199]
[1756003009741,0.1048,4787.4,4787.3,2.8087601]
[1756003010328,0.1048,4787.4,4787.3,0.7199]
[1756003010534,0.1048,4787.4,4787.3,0.2895]
[1756003011025,0.1048,4787.4,4787.3,0.7199]
[1756003011426,3.6288,4787.4,4787.3,0.7199]
[1756003011741,3.6288,4787.4,4787.3,0.001]
[1756003011941,3.9428,4787.4,4787.3,0.001]
[1756003012110,4.26966067,4787.4,4787.3,0.001]
[1756003012642,4.73446067,4787.4,4787.3,0.001]
[1756003013544,4.26966067,4787.4,4787.3,0.001]
[1756003014841,7.48327714,4787.4,4787.3,0.001]
[1756003015049,7.91367714,4787.4,4787.3,0.001]
[1756003015257,5.82486067,4787.4,4787.3,0.001]
[1756003015614,7.91367714,4787.4,4787.3,0.001]
[1756003016322,10.91367714,4787.4,4787.3,0.001]
[1756003017234,8.82486067,4787.4,4787.3,0.001]
[1756003017434,5.30086067,4787.4,4787.3,0.001]
[1756003017641,8.82286067,4787.4,4787.3,0.001]
[1756003017962,8.35806067,4787.4,4787.3,0.001]
[1756003018454,4.52206067,4787.4,4787.3,0.001]
[1756003018613,8.04506067,4787.4,4787.3,0.2895]
[1756003019019,8.35906067,4787.4,4787.3,0.001]
[1756003019349,8.82386067,4787.4,4787.3,0.001]
[1756003019916,10.91267714,4787.4,4787.3,0.001]
[1756003020153,8.82386067,4787.4,4787.3,0.001]
[1756003020328,8.35906067,4787.4,4787.3,0.001]
[1756003021435,10.44787714,4787.4,4787.3,0.001]
[1756003021648,10.91267714,4787.4,4787.3,0.001]
[1756003021946,10.58581647,4787.4,4787.3,0.001]
[1756003022720,8.0322,4787.4,4787.3,0.001]
[1756003023050,4.52209946,4787.4,4787.3,0.001]
[1756003023236,8.04309946,4787.4,4787.3,0.001]
[1756003023413,8.04309946,4787.4,4787.3,0.2895]
[1756003023618,4.38309946,4787.4,4787.3,0.2895]
[1756003023863,4.38309946,4787.4,4787.3,0.7199]
[1756003024347,0.43169946,4787.4,4787.3,0.7199]
[1756003024560,3.95269946,4787.4,4787.3,0.7199]
[1756003025249,4.26669946,4787.4,4787.3,0.001]
[1756003025752,3.95269946,4787.4,4787.3,0.001]
[1756003025952,3.95269946,4787.4,4787.3,0.7199]
[1756003027653,0.43169946,4787.4,4787.3,0.7199]
[1756003027818,3.95269946,4787.4,4787.3,2.8087601]
[1756003028020,0.1048,4787.4,4787.3,2.8087601]
[1756003028225,0.1048,4787.4,4787.3,3.29853416]
[1756003028226,3.6258,4787.4,4787.3,3.29853416]
[1756003028454,0.1048,4787.4,4787.3,2.8087601]
[1756003030686,1e-08,4787.4,4787.3,8.9595601]
[1756003030842,1e-08,4787.4,4787.3,10.41651036]
[1756003035573,1e-08,4787.4,4787.3,8.97651036]
[1756003037974,1e-08,4787.4,4787.3,9.7943195]
[1756003038173,0.002,4788.8,4788.7,2.08824942]
[1756003038373,0.002,4788.8,4788.7,15.84815607]
[1756003038588,0.002,4788.8,4788.7,19.38335607]
[1756003039165,0.002,4789.0,4788.9,2.0881622]
[1756003039364,0.002,4789.0,4788.9,2.3916622]
[1756003039606,0.002,4789.0,4788.9,2.8303622]
[1756003039905,0.002,4789.0,4788.9,4.39590187]
[1756003046915,0.002,4789.9,4788.9,7.39590187]
[1756003047079,1e-08,4790.8,4790.7,19.25490721]
[1756003047402,1e-08,4791.9,4790.8,5.08733405]
[1756003047605,0.022,4792.8,4792.3,2.08668071]
[1756003047606,1e-08,4792.4,4792.3,2.08668071]
[1756003047768,1e-08,4792.4,4792.3,10.54618071]
[1756003047970,1e-08,4792.4,4792.3,10.98488071]
[1756003048169,1e-08,4792.4,4792.3,12.35804405]
[1756003049172,1e-08,4792.4,4792.3,8.36834405]
[1756003049379,1e-08,4792.4,4792.3,7.24268071]
[1756003049380,0.29700001,4792.4,4792.3,7.24268071]
[1756003049691,0.29700001,4792.4,4792.3,5.156]
[1756003050007,0.72560001,4792.4,4792.3,5.156]
[1756003050299,0.72560001,4792.4,4790.8,2.36419072]
[1756003050300,0.72560001,4792.4,4792.1,3.551]
[1756003050501,0.4286,4792.3,4792.1,3.551]
[1756003050701,0.7256,4792.2,4792.1,3.551]
[1756003052803,2.81233469,4792.2,4791.8,0.02]
[1756003052975,0.4286,4792.1,4791.8,0.02]
[1756003053186,0.297,4791.9,4791.8,0.02]
[1756003055306,0.7256,4791.9,4791.8,0.02]
[1756003056892,0.8296,4791.9,4791.8,0.02]
[1756003057620,0.8296,4791.9,4791.5,3.548]
[1756003057816,0.4286,4791.8,4791.5,3.548]
[1756003057977,0.401,4791.6,4791.1,3.547]
[1756003058181,0.104,4791.3,4791.1,3.547]
[1756003058410,0.297,4791.2,4791.1,3.547]
[1756003060511,0.104,4791.3,4791.1,3.547]
[1756003060689,0.297,4791.2,4791.1,3.547]
[1756003063225,0.104,4791.3,4791.1,3.8505]
[1756003063424,0.32856907,4792.2,4791.1,4.45232]
[1756003063626,0.104,4791.7,4791.2,0.4387]
[1756003064405,0.104,4791.7,4791.1,3.651]
[1756003064731,0.104,4791.7,4791.2,3.543]
[1756003065927,0.297,4791.3,4791.2,3.543]
[1756003066426,0.5326,4791.7,4791.2,3.543]
[1756003067499,0.297,4791.3,4791.2,3.543]
[1756003068317,0.5326,4791.7,4791.2,3.543]
[1756003068727,0.104,4791.7,4791.2,3.543]
[1756003069505,0.104,4791.7,4791.2,4.0007]
[1756003069936,0.104,4791.7,4791.2,3.543]
[1756003070513,0.104,4791.7,4791.6,0.3092]
[1756003070903,0.104,4791.7,4791.5,3.54]
[1756003071109,0.2876,4791.6,4791.5,3.54]
[1756003072654,0.2876,4791.6,4791.5,3.538]
[1756003072863,0.2876,4791.6,4790.9,1.709]
[1756003073026,0.4508,4791.5,4790.9,5.247]
[1756003073227,0.4508,4791.5,4790.8,0.02]
[1756003073228,0.3916,4791.0,4790.8,0.02]
[1756003073845,2.53809048,4790.9,4790.8,0.02]
[1756003074146,0.7384,4790.9,4790.8,0.02]
[1756003076143,2.82569048,4790.9,4790.8,0.02]
[1756003076334,0.7384,4790.9,4790.8,0.02]
[1756003076532,0.2876,4790.9,4790.8,0.02]
[1756003076945,0.43062105,4791.0,4790.8,0.3292]
[1756003077152,1.01078422,4791.8,4790.9,0.4577]
[1756003077360,0.104,4791.2,4790.9,0.4577]
[1756003077718,0.104,4791.2,4791.1,0.3092]
[1756003078448,0.1537,4791.2,4790.8,0.02]
[1756003082923,0.4508,4791.1,4790.8,0.02]
[1756003083141,0.2876,4790.9,4790.8,0.02]
[1756003085546,0.3916,4790.9,4790.8,0.02]
[1756003085928,2.92969048,4790.9,4790.8,0.02]
[1756003086157,7.0401104,4790.9,4790.8,0.02]
[1756003086324,7.3667571,4790.9,4790.8,0.02]
[1756003086741,7.56216923,4790.9,4790.8,0.02]
[1756003087350,7.3667571,4790.9,4790.8,0.02]
[1756003088462,4.16866662,4790.9,4790.8,0.02]
[1756003088659,6.2559571,4790.9,4790.8,0.02]
[1756003090059,4.16866662,4790.9,4790.8,0.02]
[1756003090268,4.16866662,4790.9,4790.8,0.021]
[1756003090765,5.80553718,4790.9,4790.8,0.021]
[1756003091156,3.7182467,4790.9,4790.8,0.021]
[1756003091337,5.80553718,4790.9,4790.8,0.021]
[1756003091542,0.7182467,4790.9,4790.8,0.021]
[1756003091863,0.7182467,4790.9,4790.8,0.7879]
[1756003091864,0.4306467,4790.9,4790.8,0.7879]
[1756003092573,0.104,4790.9,4790.8,0.7879]
[1756003093930,2.24099048,4790.9,4790.8,0.021]
[1756003094134,2.68779048,4790.9,4790.8,0.021]
[1756003094342,3.0144198,4790.9,4790.8,0.021]
[1756003095032,6.0144198,4790.9,4790.8,0.021]
[1756003095233,6.6744198,4790.9,4790.8,0.021]
[1756003095463,7.12418083,4790.9,4790.8,0.021]
[1756003097272,10.65718083,4790.9,4790.8,0.021]
[1756003097746,10.21038083,4790.9,4790.8,0.021]
[1756003102262,10.64028083,4790.9,4790.8,0.021]
[1756003104547,10.83555302,4790.9,4790.8,0.021]
[1756003104947,10.91923402,4790.9,4790.8,0.021]
[1756003105255,10.96393979,4790.9,4790.8,0.021]
[1756003105453,10.40164396,4790.9,4790.8,0.021]
[1756003105784,6.67738083,4790.9,4790.8,0.021]
[1756003105982,10.20638083,4790.9,4790.8,0.021]
[1756003106187,9.49668083,4790.9,4790.8,0.3186]
[1756003107379,9.49668083,4790.9,4790.8,0.021]
[1756003107558,9.49668083,4790.9,4790.8,0.3186]
[1756003108753,7.40939035,4790.9,4790.8,0.3186]
[1756003108950,0.43062932,4790.9,4790.8,0.779]
[1756003109496,0.104,4790.9,4790.8,1.06574097]
[1756003109779,0.104,4790.9,4790.8,2.86633405]
[1756003110149,0.104,4790.9,4790.8,0.779]
[1756003110579,3.529,4791.8,4790.8,0.779]
[1756003110883,0.104,4791.1,4791.0,2.08724692]
[1756003111084,0.104,4791.1,4791.0,3.13197161]
[1756003111456,0.104,4791.6,4791.5,2.08702564]
[1756003111657,0.104,4791.6,4791.5,0.2976]
[1756003111882,0.104,4791.6,4791.5,2.84502911]
[1756003112088,0.104,4791.6,4791.5,3.33824234]
[1756003112467,0.104,4791.6,4791.5,1.25121323]
[1756003112684,0.104,4791.6,4791.5,0.758]
[1756003113204,0.104,4791.6,4791.5,0.2976]
[1756003113558,0.1076,4791.6,4791.1,0.4604]
[1756003113789,0.104,4791.2,4791.0,1.605]
[1756003113980,0.104,4791.2,4790.8,0.021]
[1756003114372,0.104,4790.9,4790.8,0.021]
[1756003114666,0.104,4790.9,4790.8,0.3186]
[1756003115182,0.104,4790.9,4790.8,0.779]
[1756003116289,0.104,4790.9,4790.8,2.86633405]
[1756003116504,0.104,4790.9,4790.8,1.27447926]
[1756003116791,0.104,4790.9,4790.8,3.36181331]
[1756003116967,0.104,4790.9,4790.8,1.27447926]
[1756003117552,0.104,4790.9,4790.8,0.779]
[1756003117756,0.104,4790.9,4790.8,0.3186]
[1756003118380,0.104,4790.9,4790.8,0.779]
[1756003119557,0.104,4791.0,4790.9,2.08725349]
[1756003119757,0.104,4791.5,4791.3,2.08710044]
[1756003119979,0.3551,4791.9,4791.5,2.08701373]
[1756003120295,0.32658748,4792.4,4791.8,0.2976]
[1756003120516,0.62927,4792.2,4791.8,0.2976]
[1756003120673,0.104,4791.9,4791.8,0.2976]
[1756003120993,0.104,4791.9,4791.8,0.758]
[1756003121964,0.4184,4791.9,4791.2,1.605]
[1756003122190,0.104,4791.3,4791.2,3.69215979]
[1756003122394,0.104,4791.3,4791.2,5.22011577]
[1756003123100,0.104,4791.3,4791.2,3.13295598]
[1756003123497,0.104,4791.3,4791.0,3.526]
[1756003123698,0.8483,4791.3,4790.8,0.021]
[1756003123867,0.104,4790.9,4790.8,0.021]
[1756003124877,0.4184,4790.9,4790.8,0.021]
[1756003131012,6.70306298,4790.9,4790.8,0.021]
[1756003131319,7.00883275,4790.9,4790.8,0.021]
[1756003131878,7.45743793,4790.9,4790.8,0.021]
[1756003132282,7.65210774,4790.9,4790.8,0.021]
[1756003137998,8.5807238,4790.9,4790.8,0.021]
[1756003138198,8.01842797,4790.9,4790.8,0.021]
[1756003138894,7.65193569,4790.9,4790.8,0.021]
[1756003139303,6.55913569,4790.9,4790.8,0.021]
[1756003139516,10.74113569,4790.9,4790.8,0.021]
[1756003140434,10.54663793,4790.9,4790.8,0.021]
[1756003142038,10.97943793,4790.9,4790.8,0.021]
[1756003142609,10.54663793,4790.9,4790.8,0.021]
[1756003142804,6.71023793,4790.9,4790.8,0.021]
[1756003143124,10.23723793,4790.9,4790.8,0.328]
[1756003143307,10.08713275,4790.9,4790.8,0.021]
[1756003143503,10.96781504,4790.9,4790.8,0.021]
[1756003143926,11.16220504,4790.9,4790.8,0.021]
[1756003146666,11.16214708,4790.9,4790.8,0.021]
[1756003147164,10.96781504,4790.9,4790.8,0.021]
[1756003147367,7.20234998,4790.9,4790.8,0.021]
[1756003147670,9.57451504,4790.9,4790.8,0.7686]
[1756003147873,4.38322456,4790.9,4790.8,0.7686]
[1756003148020,0.51434227,4790.9,4790.8,0.7686]
[1756003148456,0.104,4790.9,4790.8,0.7686]
[1756003148659,0.104,4790.9,4790.8,2.85593405]
[1756003148860,0.104,4790.9,4790.8,3.35047309]
[1756003149183,0.104,4790.9,4790.8,1.26313904]
[1756003149636,0.104,4790.9,4790.8,2.85593405]
[1756003149834,0.104,4790.9,4790.8,0.7686]
[1756003155867,0.104,4790.9,4790.8,2.85593405]
[1756003156358,0.104,4790.9,4790.8,0.7686]
[1756003157140,0.104,4790.9,4790.8,2.85593405]
[1756003157459,0.104,4790.9,4790.8,3.35047175]
[1756003159365,0.32662772,4791.6,4791.0,2.0872261]
[1756003159545,0.32662772,4791.6,4791.5,0.3041]
[1756003159959,0.43062772,4791.6,4791.5,0.7411]
[1756003161967,0.104,4791.6,4791.5,0.7411]
[1756003162140,0.104,4791.6,4791.5,1.02393033]
[1756003162648,0.104,4791.6,4791.5,0.7411]
[1756003162835,0.104,4791.6,4791.1,0.437]
[1756003163032,0.104,4791.6,4790.8,0.6195377]
[1756003163033,0.104,4791.6,4790.8,1.0565377]
[1756003163540,2.08690588,4791.8,4790.8,0.9525377]
[1756003163735,0.104,4791.2,4790.8,0.9525377]
[1756003163943,2.08695151,4791.7,4790.9,0.45795377]
[1756003164150,2.08695151,4791.7,4790.8,0.021]
[1756003164151,2.08689991,4791.8,4790.8,0.021]
[1756003164448,0.4597,4791.8,4790.8,0.021]
[1756003164644,0.104,4790.9,4790.8,0.021]
[1756003164844,0.104,4790.9,4790.8,0.3251]
[1756003165064,0.104,4790.9,4790.8,0.7621]
[1756003167045,0.104,4790.9,4790.8,1.39934986]
[1756003168152,0.104,4790.9,4790.8,3.48668391]
[1756003168557,0.104,4790.9,4790.8,1.39934986]
[1756003169460,0.104,4790.9,4790.8,3.48668391]
[1756003169666,0.104,4791.4,4790.8,3.59068391]
[1756003169860,0.104,4791.4,4790.9,1.13796839]
[1756003170090,0.104,4791.4,4791.3,0.3041]
[1756003170693,0.104,4791.4,4791.3,0.7411]
[1756003171491,0.104,4791.4,4791.3,2.82821623]
[1756003171693,0.32658934,4792.1,4791.5,2.08701116]
[1756003171866,0.32658934,4792.1,4792.0,0.3041]
[1756003172268,0.43058934,4792.1,4792.0,0.3041]
[1756003173565,0.43058934,4792.1,4791.7,0.437]
[1756003173765,0.104,4791.8,4791.7,0.437]
[1756003173999,0.104,4791.8,4791.7,0.7411]
[1756003174798,0.104,4791.8,4791.7,0.3041]
[1756003177113,0.3992,4791.8,4791.1,5.60719822]
[1756003177266,0.3992,4791.8,4791.2,0.64331666]
[1756003178164,0.3992,4791.8,4791.3,2.08711599]
[1756003178365,0.3992,4791.8,4791.3,0.437]
[1756003180690,0.3992,4791.8,4791.2,0.64331666]
[1756003180872,0.3992,4791.8,4790.8,0.021]
[1756003180873,0.104,4791.3,4790.8,0.021]
[1756003181068,0.104,4791.3,4790.8,2.725337]
[1756003181289,0.104,4791.3,4790.9,0.437]
[1756003182265,0.104,4791.3,4791.2,0.3041]
[1756003182574,0.104,4791.3,4791.2,2.39125979]
[1756003182901,0.104,4791.3,4791.2,2.82825979]
[1756003183090,0.32658934,4792.1,4791.5,2.08702263]
[1756003183404,0.104,4791.6,4791.4,2.08703328]
[1756003183604,0.104,4791.6,4791.5,2.82812911]
[1756003183770,0.104,4791.6,4791.5,1.64005956]
[1756003184372,0.104,4791.6,4791.5,3.72708867]
[1756003186318,0.104,4791.6,4791.5,1.64005956]
[1756003186774,0.104,4791.6,4791.5,0.7411]
[1756003187126,0.1374,4791.6,4790.9,0.104]
[1756003187414,0.104,4791.3,4790.7,3.52]
[1756003187620,0.104,4791.3,4791.0,2.0872404]
[1756003187774,0.104,4791.3,4790.9,2.08728796]
[1756003187974,0.104,4791.3,4790.9,0.437]
[1756003188195,0.104,4791.3,4791.0,2.52424323]
[1756003188495,2.41262125,4791.6,4791.5,0.001]
[1756003188790,0.3286,4791.6,4791.5,0.001]
[1756003189387,0.4326,4791.6,4791.5,0.001]
[1756003191691,3.17958555,4791.6,4791.5,0.001]
[1756003191890,1.0926,4791.6,4791.5,0.001]
[1756003192126,9.69858555,4791.6,4791.5,0.001]
[1756003192308,10.14842693,4791.6,4791.5,0.001]
[1756003194534,10.23208893,4791.6,4791.5,0.001]
[1756003195200,3.93270338,4791.6,4791.5,0.001]
[1756003195401,3.93270338,4791.6,4791.5,0.3044]
[1756003195402,0.187662,4791.6,4791.5,0.3044]
[1756003195638,0.187662,4791.6,4791.5,2.82802911]
[1756003195843,0.104,4791.6,4791.5,3.31954284]
[1756003196041,0.104,4791.6,4791.5,1.23251373]
[1756003196544,0.104,4791.6,4791.5,0.741]
[1756003197456,0.104,4791.6,4791.5,2.82802911]
[1756003197819,0.104,4791.6,4791.5,0.741]
[1756003198757,0.104,4791.6,4791.5,2.82802911]
[1756003198926,0.104,4791.6,4791.5,0.741]
[1756003200320,0.104,4791.6,4791.5,0.001]
[1756003200519,0.104,4791.6,4791.5,0.3044]
[1756003201132,0.104,4791.6,4791.5,0.741]
[1756003201335,0.104,4791.6,4791.5,2.82802911]
[1756003201952,0.104,4791.6,4791.5,0.741]
[1756003202258,0.104,4791.6,4791.5,1.58442584]
[1756003202423,0.104,4791.6,4791.5,0.741]
[1756003202619,0.104,4791.6,4791.5,2.82802911]
[1756003202840,0.104,4791.6,4791.5,4.43302911]
[1756003203059,0.002,4792.2,4792.1,2.0867678]
[1756003203261,0.002,4792.2,4792.1,6.11784458]
[1756003203562,0.002,4792.2,4792.1,6.55444458]
[1756003203862,0.002,4792.2,4792.1,4.46767678]
[1756003204159,0.002,4792.2,4792.1,6.55444458]
[1756003206236,0.002,4792.2,4792.1,9.55444458]
[1756003213576,0.002,4792.2,4792.1,6.55444458]
[1756003214476,0.002,4792.2,4792.1,0.51207678]
[1756003214678,0.002,4792.2,4792.1,3.518]
[1756003214880,0.2967,4792.2,4792.1,5.6047678]
[1756003215174,0.2967,4792.2,4791.5,1.606]
[1756003215375,0.7404,4792.2,4791.6,3.518]
[1756003215671,0.7404,4792.2,4791.7,2.08693689]
[1756003216075,0.4417,4792.1,4791.6,3.518]
[1756003216375,0.4457,4792.2,4791.6,3.518]
[1756003216575,0.4457,4792.2,4791.6,5.60498108]
[1756003216746,0.4457,4792.2,4791.9,2.08684876]
[1756003217083,0.3987,4792.0,4791.9,2.0868549]
[1756003217256,0.3987,4792.0,4791.9,3.518]
[1756003217753,0.8404,4792.0,4791.5,1.606]
[1756003217963,0.4417,4791.9,4791.6,3.518]
[1756003218189,0.3987,4791.7,4791.6,3.518]
[1756003218495,0.8404,4791.7,4791.6,3.518]
[1756003220289,0.104,4791.7,4791.6,3.8037]
[1756003220478,0.104,4791.7,4791.6,6.88275555]
[1756003220801,0.5497,4792.2,4791.8,2.08689845]
[1756003221092,0.5497,4792.2,4791.9,3.517]
[1756003221276,0.5497,4792.2,4791.9,5.60384626]
[1756003221462,0.5497,4792.2,4792.0,2.08680267]
[1756003221664,0.5497,4792.2,4791.9,3.517]
[1756003222461,0.3115,4792.0,4791.9,3.517]
[1756003222757,0.3115,4792.0,4791.9,5.6038549]
[1756003222957,0.5497,4792.2,4791.9,5.6038549]
[1756003223389,0.5497,4792.2,4792.0,2.08680554]
[1756003223593,0.5497,4792.2,4792.1,0.2857]
[1756003224289,0.106,4792.2,4792.1,0.2857]
[1756003224464,0.106,4792.2,4792.1,3.66632234]
[1756003224671,0.002,4792.2,4792.1,2.8235678]
[1756003224870,0.002,4792.2,4792.1,2.9275678]
[1756003225084,0.002,4792.2,4792.1,6.4445678]
[1756003227901,0.002,4792.2,4792.1,9.4445678]
[1756003228304,0.002,4792.2,4792.1,10.59770806]
[1756003238886,0.002,4792.2,4792.1,10.59870806]
[1756003241822,0.002,4792.2,4792.1,6.63060806]
[1756003241996,0.3135,4792.2,4792.1,9.86090806]
[1756003242485,0.002,4792.2,4792.1,9.86090806]
[1756003242894,0.002,4792.2,4792.1,10.14660806]
[1756003244201,0.002,4792.2,4792.1,10.59770806]
[1756003247026,0.002,4792.7,4792.6,10.00604774]
[1756003247240,0.002,4792.7,4792.6,18.51574774]
[1756003247418,0.002,4792.7,4792.6,19.1619577]
[1756003248426,0.002,4792.7,4792.6,18.96684774]
[1756003249232,0.002,4792.9,4792.8,2.08646302]
[1756003249396,0.002,4792.9,4792.8,11.2140306]
[1756003249593,0.002,4793.3,4793.0,2.08637596]
[1756003249818,0.002,4793.3,4793.0,6.10861246]
[1756003250133,0.002,4793.3,4793.0,6.57571246]
[1756003250298,0.002,4793.3,4793.0,8.52245396]
[1756003250499,0.002,4793.3,4793.1,2.08633243]
[1756003250825,0.002,4793.3,4793.1,13.78403008]
[1756003256637,0.296,4793.2,4793.1,8.60133243]
[1756003256839,0.296,4793.2,4793.1,9.89669107]
[1756003259605,0.002,4793.2,4793.1,10.20779107]
[1756003259803,0.002,4793.2,4793.1,10.77889107]
[1756003260656,0.002,4793.3,4793.2,2.0862889]
[1756003260852,0.002,4793.3,4793.2,7.47586101]
[1756003261143,0.002,4793.3,4793.2,7.94296101]
[1756003263777,1e-08,4793.3,4793.2,7.94296101]
[1756003263926,1e-08,4793.4,4793.3,5.08624538]
[1756003264271,1e-08,4793.4,4793.3,19.00093713]
[1756003273747,1e-08,4793.4,4793.3,18.53383713]
[1756003274267,1e-08,4793.4,4793.3,18.22273713]
[1756003274465,1e-08,4793.4,4793.3,18.53383713]
[1756003274642,1e-08,4793.4,4793.3,10.61433948]
[1756003274838,1e-08,4793.4,4793.3,18.53383713]
[1756003276268,1e-08,4793.4,4793.3,19.00093713]
[1756003276564,1e-08,4793.9,4793.8,2.08602778]
[1756003276752,1e-08,4793.9,4793.8,18.95483755]
[1756003277277,1e-08,4793.9,4793.8,18.64373755]
[1756003278353,1e-08,4793.9,4793.8,18.95483755]
[1756003278660,0.002,4794.4,4794.3,2.08581023]
[1756003278862,0.002,4794.4,4794.3,5.80739125]
[1756003279057,0.002,4794.4,4794.3,8.91139125]
[1756003279257,0.3008,4794.4,4794.3,8.91139125]
[1756003282264,0.3008,4794.4,4794.3,8.70281023]
[1756003282480,0.7625,4794.4,4794.3,8.70281023]
[1756003282892,0.7625,4794.4,4794.3,5.70281023]
[1756003288264,0.3008,4794.4,4794.3,5.70281023]
[1756003292868,0.7625,4794.4,4794.3,5.70281023]
[1756003293379,0.7625,4794.4,4794.3,5.67781023]
[1756003295798,0.7625,4794.4,4794.3,5.70281023]
[1756003297613,0.7625,4794.4,4794.3,5.59881023]
[1756003299523,0.3008,4794.4,4794.3,5.59881023]
[1756003300986,0.002,4794.4,4794.3,6.32911023]
[1756003301193,0.002,4794.4,4794.3,5.99661023]
[1756003301815,0.002,4794.4,4794.3,6.43311023]
[1756003304423,0.002,4794.4,4794.3,7.2850094]
[1756003305690,0.002,4794.4,4794.3,6.5547094]
[1756003305934,0.002,4794.4,4794.3,5.99661023]